Cogmind - Beta 17 @@@ ROGUE MODE // 2026.06.29 @ 19:55:24 Player: f3-rnm Result: Destroyed by IP-P5D(R) with Subdweller Machine Gun Performance ------------- Evolutions (0) 0 Regions Visited (2) 400 Robots Destroyed (27) 135 Value Destroyed (723) 723 Prototype IDs (1) 20 Alien Tech Used (0) 0 Bonus (5350) 5350 TOTAL SCORE: 6628 Bonus ------- Prayed to X0-1V1 5000 Major X0-1V1 Interference 350 Cogmind --------- Core Integrity 0/250 Matter 147/300 Energy 199/200 System Corruption 1% Temperature Cool (0) Movement Core (450) Ox8 Location -10/Subcaves Parts ------- > --- POWER (1) -------- Subdweller Power Source > --- PROPULSION (1) --- (None) > --- UTILITY (3) ------ Large Storage Unit X0-1V1's Piety Tracker > --- WEAPON (2) ------- Mini Grenade Launcher > --- INVENTORY (15) --- Light Ion Engine Compact Wheel Tractor Beam EM Shotgun Small Laser Mini Grenade Launcher Peak State ------------ > --- POWER ------------ Ion Engine > --- PROPULSION ------- Light Treads Light Treads > --- UTILITY ---------- Large Storage Unit X0-1V1's Piety Tracker > --- WEAPON ----------- EM Shotgun EM Shotgun > --- INVENTORY -------- Light Ion Engine Light Treads Compact Wheel Tractor Beam Small Laser Mini Grenade Launcher Mini Grenade Launcher Mini Grenade Launcher [Rating: 22] Favorites ----------- Power Ion Engine Engine Ion Engine Propulsion Light Treads Treads Light Treads Wheel Compact Wheel Utility Large Storage Unit Device X0-1V1's Piety Tracker Storage Large Storage Unit Weapon EM Shotgun Energy Gun EM Shotgun Ballistic Gun Assault Rifle Launcher Mini Grenade Launcher Build | -11 -10 -10 ------- Run | Yrd Mat Sub Slots Evolved . | . . . Power . | . . . Propulsion . | . . . Utility . | . . . Weapon . | . . . Parts Attached 18 | 6 7 5 Power 3 | 1 1 1 Engine 3 | 1 1 1 Core . | . . . Reactor . | . . . Propulsion 4 | 2 . 2 Treads 3 | 2 . 1 Leg . | . . . Wheel 1 | . . 1 Hover . | . . . Flight . | . . . Utility 3 | 1 2 . Device 1 | . 1 . Storage 2 | 1 1 . Processor . | . . . Hackware . | . . . Protection . | . . . Artifact . | . . . Weapon 8 | 2 4 2 Energy Gun 5 | 1 4 . Energy Cannon . | . . . Ballistic Gun 1 | 1 . . Ballistic Cannon . | . . . Launcher 2 | . . 2 Special Weapon . | . . . Impact Weapon . | . . . Slashing Weapon . | . . . Piercing Weapon . | . . . Special Melee Weapon . | . . . Unidentified Prototypes 1 | . 1 . Corrupted Parts 1 | . . 1 System Corruption 1 | . . 1 Parts Lost 8 | . 2 6 Power 2 | . 1 1 Propulsion 3 | . . 3 Utility . | . . . Weapon 3 | . 1 2 Highest Loss Streak 4 | . 1 4 To Critical Strikes . | . . . Average Backups 6 | . 6 6 Power 1 | . 1 1 Propulsion 1 | . 1 1 Utility . | . . 1 Weapon 2 | . 2 3 Tool/Special . | . . . Unused Backups 3 | . . 3 Power 1 | . . 1 Propulsion . | . . . Utility 1 | . . 1 Weapon 1 | . . 1 Tool/Special . | . . . Average Slot Usage (%) 88 | . 84 94 Engine 13 | . 13 13 Treads 24 | . 28 19 Wheel 2 | . . 4 Device 5 | . . 14 Storage 14 | . 14 14 Energy Gun 19 | . 23 14 Ballistic Gun 2 | . 4 . Launcher 5 | . . 13 Peak Build Rating 22 | 6 22 22 Average Rating 13 | 4 7 21 On Entrance 9 | . 6 22 Avg Prop Armor Cover (%) 16 | . . 16 Naked Turns . | . . . Heaviest Build 36 | 12 36 32 Greatest Support 40 | 40 40 40 Greatest Overweight (x) 9 | 2 . 9 Average Overweight (x) . | . . 1 Largest Inventory Capacity 15 | 8 15 15 Average Capacity 12 | 7 10 15 Most Carried 8 | 2 8 8 Average Carried 6 | . 6 6 Final Capacity 15 | 8 15 15 Final Carried 8 | 2 8 6 Class Distribution -------------------- 100% | Mutant Dominant Class ---------------- Mutant | -10/Materials Mutant | -10/Subcaves Resources | -11 -10 -10 ----------- Run | Yrd Mat Sub Matter Collected 469 | 165 227 77 Remotely . | . . . Salvage Created 777 | . 556 221 Parts 54 | . 41 13 Haulers Intercepted 1 | . 1 . Recyclers Shooed . | . . . Parts Field Recycled . | . . . Retrieved Matter . | . . . Parts Self-Destructed 14 | . . 14 Prevented . | . . . Parts Restored . | . . . Kills | -11 -10 -10 ------- Run | Yrd Mat Sub Combat Hostiles Destroyed 23 | . 14 9 Guns 15 | . 13 2 AOE 7 | . . 7 Classes Destroyed 6 | . 5 1 Builder 2 | . 2 . Hauler 1 | . 1 . Mechanic 1 | . 1 . Swarmer 6 | . 6 . Grunt 13 | . 8 5 Subdweller 4 | . . 4 Best Kill Streak 6 | . 3 6 Combat Bots Only 6 | . 3 6 Max Kills in Single Turn 3 | . 1 3 Gunslinging . | . . . Exploded 3 | . . 3 Melee . | . . . Uniques/NPCs Destroyed . | . . . Combat | -11 -10 -10 -------- Run | Yrd Mat Sub Hostile Shots Fired 103 | . 81 22 Missed 32 | . 26 6 Hits 71 | . 55 16 Projectile 71 | . 55 16 AOE 1 | . . 1 Damage Taken 1179 | . 595 584 Core 288 | . 75 213 Absorbed by Shields . | . . . Core Remaining (%) 100 | 100 . . Volleys Fired 64 | . 49 15 Largest 2 | . 2 2 Hottest 90 | . 90 90 Shots Fired 119 | . 92 27 Gun 102 | . 92 10 Cannon . | . . . Launcher 17 | . . 17 Special . | . . . Kinetic 19 | . 19 . Thermal 43 | . 41 2 Explosive 17 | . . 17 Electromagnetic 40 | . 32 8 Robot Hit Streak 12 | . 7 12 Robot Miss Streak 4 | . 4 2 Penetration Max . | . . . Secondary Targets 2 | . 2 . Max Gunslinging Chain 1 | . 1 . Shots Hit Robots 67 | . 57 10 Core Hits 51 | . 30 21 Critical Kills . | . . . Critical Parts Destroyed . | . . . Critical Strikes 2 | . 2 . Burn 2 | . 2 . Melee Attacks . | . . . Impact . | . . . Slashing . | . . . Piercing . | . . . Sneak Attacks . | . . . Combat Hostiles . | . . . Follow-up Attacks . | . . . Damage Inflicted 1570 | . 724 846 Guns 858 | . 724 134 Cannons . | . . . Explosions 712 | . . 712 Melee . | . . . Ramming . | . . . Kinetic 184 | . 184 . Thermal 383 | . 361 22 Explosive 712 | . . 712 Electromagnetic 291 | . 179 112 Impact . | . . . Slashing . | . . . Piercing . | . . . Highest Corruption 1 | . . 1 Average Corruption 1 | . . 1 Corruption Purged . | . . . Corruption Blocked . | . . . Effects 6 | . . 6 Message Errors 4 | . . 4 Energy Discharges 2 | . . 2 Overload Shots . | . . . Overflow Damage 24 | . . 24 Projectiles . | . . . Explosions 24 | . . 24 Melee . | . . . Knockbacks . | . . . Impact . | . . . Kinetic . | . . . Secondary . | . . . Self-Inflicted Damage 54 | . . 54 Shots 2 | . . 2 Rammed . | . . . Targets Rammed . | . . . Kicked . | . . . Crushed . | . . . Highest Temperature 270 | . 270 . Average Temperature 75 | . 75 . Received Heat Transfer 312 | . 282 30 Effects 2 | . 2 . Interference 2 | . 2 . Siege Activations . | . . . Martial Activations . | . . . Shielding Activations . | . . . Robots Disrupted . | . . . Combat Hostiles . | . . . Robots Corrupted . | . . . Combat Hostiles . | . . . Parts Fried . | . . . Impact Corruptions . | . . . Robots Melted 1 | . 1 . Combat Hostiles 1 | . 1 . Parts Melted 3 | . 3 . Heat Transferred 1200 | . 1150 50 Parts Sabotaged . | . . . Parts Stolen . | . . . Parts Stripped . | . . . Power Chain Reactions . | . . . Alert | -11 -10 -10 ------- Run | Yrd Mat Sub Maximum Alert Level . | . . . Low Security (%) 100 | 100 100 . Level 1 . | . . . Level 2 . | . . . Level 3 . | . . . Level 4 . | . . . Level 5 . | . . . High Security . | . . . Max Security . | . . . Peak Influence 131 | . 131 . Initial . | . . . Average 64 | . 70 . Influence Increases 507 | . 407 100 Destroy 0b10 Robot/C 380 | . 280 100 Destroy 0b10 Robot/NC 20 | . 20 . Destroy Leader 62 | . 62 . Disable Machine 15 | . 15 . Partial Spotted 15 | . 15 . Lose Combat Pursuer 15 | . 15 . Influence Decreases 507 | . 339 168 Entered New Map 33 | . . 33 Time Decay 454 | . 319 135 Lost Part 20 | . 20 . Squads Dispatched 2 | . 2 . Investigation 1 | . 1 . Extermination . | . . . Reinforcement 1 | . 1 . Assault . | . . . Garrison . | . . . Intercept . | . . . Searches Triggered . | . . . Construction Impeded . | . . . Haulers Reinforced . | . . . Active Scanning Responses . | . . . Cargo Convoy Interrupts . | . . . Stealth | -11 -10 -10 --------- Run | Yrd Mat Sub Distress Signals 1 | . 1 . Communications Jammed . | . . . Distress Signals . | . . . Times Spotted 36 | . 25 11 Peak Tracking Total 5 | . 5 5 Tactical Retreats 1 | . 1 . Traps | -11 -10 -10 ------- Run | Yrd Mat Sub Traps Triggered 5 | . 2 3 Indirectly . | . . . Trap Hack Attempts . | . . . Triggered . | . . . Disarmed . | . . . Reprogrammed . | . . . Reused . | . . . Traps Extracted . | . . . Installed . | . . . Triggered . | . . . Machines | -11 -10 -10 ---------- Run | Yrd Mat Sub Machines Disabled 1 | . 1 . Max in Single Turn 1 | . 1 . Machines Repaired . | . . . Machines Dismantled . | . . . Machines Sabotaged . | . . . Overloaded Fab Kills . | . . . Hacking | -11 -10 -10 --------- Run | Yrd Mat Sub Machines Accessed . | . . . Terminals . | . . . Fabricators . | . . . Repair Stations . | . . . Recycling Units . | . . . Scanalyzers . | . . . Garrison Access . | . . . Total Hacks . | . . . Successful . | . . . Failed . | . . . Catastrophic . | . . . Database Lockouts . | . . . Manual 2 | . 2 . Terminals . | . . . Fabricators . | . . . Repair Stations . | . . . Recycling Units . | . . . Scanalyzers . | . . . Garrison Access . | . . . Terminal Hacks . | . . . Fabricator Hacks . | . . . Repair Station Hacks . | . . . Recycling Unit Hacks . | . . . Scanalyzer . | . . . Garrison Access Hacks . | . . . Unauthorized Hacks . | . . . Terminals . | . . . Fabricators . | . . . Repair Stations . | . . . Recycling Units . | . . . Scanalyzers . | . . . Garrison Access . | . . . Data Cores Recovered . | . . . Used . | . . . Hacking Detections . | . . . Full Trace Events . | . . . Feedback Events . | . . . Feedback Blocked . | . . . Robot Schematics Acquired . | . . . Robots Built . | . . . Authchips . | . . . Time . | . . . Total Robot Build Rating . | . . . Part Schematics Acquired . | . . . Parts Built . | . . . Authchips . | . . . Time . | . . . Total Part Build Rating . | . . . Part Studies Acquired . | . . . Parts Repaired . | . . . Time . | . . . Parts Recycled . | . . . Recycled Matter . | . . . Retrieved Matter . | . . . Retrieved Components . | . . . Parts Scanalyzed . | . . . Part Schematics Acquired . | . . . Parts Damaged . | . . . Bothacking | -11 -10 -10 ------------ Run | Yrd Mat Sub Used RIF Installer . | . . . Robots Hacked . | . . . Non-combat . | . . . Combat . | . . . Robot Hacks Applied . | . . . Relay Couplers Released . | . . . Fabnet Peak Effective % . | . . . Robots Rewired . | . . . Allies Hacked . | . . . Hacks Repelled . | . . . Allies | -11 -10 -10 -------- Run | Yrd Mat Sub Total Allies . | . . . Largest Group . | . . . Highest-Rated Group . | . . . Highest-Rated Ally . | . . . Total Orders . | . . . Ally Attacks . | . . . Total Damage . | . . . Kills . | . . . Allies Corrupted . | . . . Allies Melted . | . . . X0-1V1 Amusement Gains 109 | . 14 95 Bad Acts 3 | . . 3 Intel | -11 -10 -10 ------- Run | Yrd Mat Sub Active Infowar (turns) . | . . . Robot Analysis Total . | . . . Derelict Logs Recovered . | . . . Drone Launches . | . . . Drone Recoveries . | . . . Exploration | -11 -10 -10 ------------- Run | Yrd Mat Sub Turns Passed 1695 | 76 930 689 Spaces Moved 847 | 50 434 363 Core 55 | 19 . 36 Treads 604 | 31 434 139 Legs . | . . . Wheels 188 | . . 188 Hover . | . . . Flight . | . . . Fastest Speed 50 | 50 160 115 Average Speed 162 | 132 160 169 Slowest Speed 500 | 160 160 500 Overloaded Moves . | . . . Propulsion Burnouts . | . . . Robots Hopped . | . . . Potential Cave-ins . | . . . Cave-ins Triggered . | . . . Exploration Rate (%) 35 | 4 78 25 Regions Visited 2 Branch Regions 1 Pre-discovered Areas . | . . . Known Exits Taken . | . . . Unknown Exits Taken 2 | 1 1 . Scrap Searched . | . . . Spaces Dug . | . . . Terrain Destroyed 58 | . . 58 Melee . | . . . Projectile . | . . . AOE 58 | . . 58 Terrain Rammed . | . . . Walls Destroyed . | . . . Machines Disabled . | . . . Actions | -11 -10 -10 --------- Run | Yrd Mat Sub Total 1042 | 57 575 410 Wait 99 | . 74 25 Move 845 | 49 433 363 Hop . | . . . Pick Up 9 | 2 6 1 Fast Attach 15 | 6 8 1 Attach 4 | . 1 3 Detach . | . . . Swap 3 | . 1 2 Drop 3 | . 3 . Fire 64 | . 49 15 Melee . | . . . Ram . | . . . Kick . | . . . Crush . | . . . Escape Stasis . | . . . Rewire . | . . . Trap . | . . . Miscellaneous . | . . . Route ------- -11/Scrapyard -10/Materials (discovered 6 exits: [*Mat x3] / [*Min x2] / [*Sub]) -10/Subcaves (discovered 1 exit: [*Mat]) History --------- Turn | Location | Event 12 | -11/Scrapyard | Discovered new exit (range 16) 77 | -11/Scrapyard | Entered Materials 306 | -10/Materials | Build established: Mutant 345 | -10/Materials | Discovered new exit (range 10) 627 | -10/Materials | Discovered new exit (range 16) 864 | -10/Materials | Discovered new exit (range 5) 896 | -10/Materials | Discovered new exit (range 16) 918 | -10/Materials | Discovered new exit (range 8) 975 | -10/Materials | Discovered new exit (range 5) 1001 | -10/Materials | Made a sacrifice at D.C.S.S. Altar Unit 1002 | -10/Materials | Core integrity fell below 50% 1007 | -10/Materials | Entered Subcaves 1008 | -10/Subcaves | Approached by a straggling Scientist 1140 | -10/Subcaves | Discovered new exit (range 8) 1266 | -10/Subcaves | X0-1V1 rescued you from certain death 1270 | -10/Subcaves | Core integrity fell below 20% 1308 | -10/Subcaves | Lost 4 parts (1p2n1w) 1378 | -10/Subcaves | X0-1V1 sent hostile G-34 Mercenary (x5) 1508 | -10/Subcaves | X0-1V1 mutated your Propulsion slot to Utility slot 1696 | -10/Subcaves | Destroyed by IP-P5D(R) with Subdweller Machine Gun Last Messages --------------- 01508_ X0-1V1: "Evolution hits right when you least expect it." (Propulsion slot mutated into Utility slot) 01510_ Acquired Com. Wheel. WA-FGX(c): "I think it's somewhere southeast of here" 01538_ R=VDS=ZCL8DT D:WI55SG4YC8G9>Z4WZ WA-FGX(c): "I think it's somewhere southeast of here" 01578_ 6BF2XJK0 NZA#PMUV/YQGFM 01616_ System corrupted: Energy discharge (-68). WA-FGX(c): "I think it's somewhere south of here" 01634_ The unstable cave ceiling collapses. 01650_ WA-FGX(c) destroyed. 01651_ Destroyed Sub. Optics. 01654_ Destroyed Sub. Monowheel. 01657_ The unstable cave ceiling collapses. 01660_ 10-EUL(R) destroyed. 01672_ The unstable cave ceiling collapses. 01676_ Mni. Grenade Launcher destroyed. 01678_ Lgt. Treads destroyed. 01680_ The unstable cave ceiling collapses. 01696_ X0-1V1 chuckles heartily! Map ----- +----------------------------------------------------+ | | | | | | | | | | | | | | | ?????????????????????????????????????????????????? | | ?????????????????????????????????????????????????? | | ?????????????????????????????????????????????????? | | ?????????????????????????????????????????????????? | | ??????????????????????##??##?????????????????????? | | ?????????????????????# "" ###??????????????????? | | ????????????????????? ""##?????????????????? | | ????????????????????